Cogmind - Beta 9.6 @@@ ROGUE MODE // 2020.07.29 @ 00:35:15 // Winter2019/RPGLIKE Player: FontPeg Result: Self-destructed Performance ------------- Evolutions (1) 500 Regions Visited (2) 400 Robots Destroyed (27) 135 Value Destroyed (565) 565 Prototype IDs (0) 0 Alien Tech Used (0) 0 Bonus (0) 0 TOTAL SCORE: 1600 Bonus ------- None Cogmind --------- Core Integrity 184/600 Matter 295/300 Energy 173/250 System Corruption 0% Temperature Cool (0) Movement Flying (34) Location -9/Materials Parts ------- > --- POWER (1) -------- Ion Engine > --- PROPULSION (3) --- Flight Unit Flight Unit Flight Unit > --- UTILITY (2) ------ ECM Suite > --- WEAPON (2) ------- Small Laser > --- INVENTORY (2) ---- Light Ion Engine Flight Unit Peak State ------------ > --- POWER ------------ Light Ion Engine > --- PROPULSION ------- Wheel Wheel Wheel > --- UTILITY ---------- ECM Suite Medium Armor Plating > --- WEAPON ----------- Medium Laser Small Laser > --- INVENTORY -------- Light Ion Engine Small Laser [Rating: 9] Favorites ----------- Power Light Ion Engine Engine Light Ion Engine Propulsion Wheel Wheel Wheel Flight Unit Flight Unit Utility ECM Suite Device ECM Suite Protection Medium Armor Plating Weapon Small Laser Energy Gun Small Laser Build | -11 -10 -9 ------- Run | Scr Mat Mat Slots Evolved 4 | 3 . 1 Power . | . . . Propulsion 2 | 1 . 1 Utility 1 | 1 . . Weapon 1 | 1 . . Parts Attached 14 | 5 2 7 Power 2 | 1 . 1 Engine 2 | 1 . 1 Core . | . . . Reactor . | . . . Propulsion 6 | 2 . 4 Treads . | . . . Leg . | . . . Wheel 3 | 2 . 1 Hover . | . . . Flight 3 | . . 3 Utility 2 | . 1 1 Device 1 | . 1 . Storage . | . . . Processor . | . . . Hackware . | . . . Protection 1 | . . 1 Artifact . | . . . Weapon 4 | 2 1 1 Energy Gun 4 | 2 1 1 Energy Cannon . | . . . Ballistic Gun . | . . . Ballistic Cannon . | . . . Launcher . | . . . Special Weapon . | . . . Impact Weapon . | . . . Slashing Weapon . | . . . Piercing Weapon . | . . . Special Melee Weapon . | . . . Unidentified Prototypes . | . . . Parts Lost 3 | . . 3 Power . | . . . Propulsion . | . . . Utility 1 | . . 1 Weapon 2 | . . 2 Highest Loss Streak 2 | . . 2 Average Slot Usage (%) 86 | . 82 87 Engine 11 | . 14 11 Wheel 24 | . 28 23 Flight 7 | . . 9 Device 11 | . 11 12 Protection 6 | . . 7 Energy Gun 23 | . 28 21 Naked Turns . | . . . Heaviest Build 14 | 6 7 14 Greatest Support 35 | 20 20 35 Greatest Overweight (x) . | . . . Average Overweight (x) . | . . . Largest Inventory Capacity 2 | 2 2 2 Average Capacity 1 | 1 2 2 Most Carried 2 | 2 2 2 Average Carried 1 | 1 2 1 Final Capacity 2 | 2 2 2 Final Carried 2 | 2 2 2 Class Distribution -------------------- 89% | Mutant 10% | Scavenger-Mutant Dominant Class ---------------- Mutant | -10/Materials Mutant | -9/Materials Resources | -11 -10 -9 ----------- Run | Scr Mat Mat Matter Collected 330 | 250 20 60 Remotely . | . . . Salvage Created 738 | . 16 722 Parts 47 | . . 47 Haulers Intercepted . | . . . Recyclers Shooed . | . . . Parts Field Recycled . | . . . Retrieved Matter . | . . . Parts Self-Destructed . | . . . Prevented . | . . . Kills | -11 -10 -9 ------- Run | Scr Mat Mat Combat Hostiles Destroyed 20 | . 1 19 Guns 20 | . 1 19 Classes Destroyed 8 | . 1 7 Worker 1 | . . 1 Builder 1 | . . 1 Tunneler 1 | . . 1 Watcher 4 | . . 4 Swarmer 10 | . 1 9 Grunt 6 | . . 6 Brawler 1 | . . 1 Sentry 3 | . . 3 Best Kill Streak 6 | . 1 6 Combat Bots Only 6 | . 1 6 Max Kills in Single Turn 2 | . 1 2 Gunslinging . | . . . Exploded . | . . . Melee . | . . . Uniques/NPCs Destroyed . | . . . Combat | -11 -10 -9 -------- Run | Scr Mat Mat Damage Taken 1138 | . 51 1087 Core 836 | . 40 796 Absorbed by Shields . | . . . Redirected to Core 628 | . 31 597 Core Remaining (%) 96 | 100 93 . Volleys Fired 85 | . 3 82 Largest 2 | . 2 2 Hottest 90 | . 90 90 Shots Fired 131 | . 6 125 Gun 131 | . 6 125 Cannon . | . . . Launcher . | . . . Special . | . . . Kinetic . | . . . Thermal 131 | . 6 125 Explosive . | . . . Electromagnetic . | . . . Robot Hit Streak 14 | . 1 14 Robot Miss Streak 4 | . 2 4 Penetration Max . | . . . Secondary Targets 4 | . . 4 Max Gunslinging Chain 1 | . . 1 Shots Hit Robots 91 | . 2 89 Core Hits 38 | . 1 37 Critical Hits . | . . . Critical Kills . | . . . Critical Parts Destroyed . | . . . Melee Attacks . | . . . Impact . | . . . Slashing . | . . . Piercing . | . . . Sneak Attacks . | . . . Combat Hostiles . | . . . Follow-up Attacks . | . . . Damage Inflicted 1176 | . 37 1139 Guns 1176 | . 37 1139 Cannons . | . . . Explosions . | . . . Melee . | . . . Ramming . | . . . Kinetic . | . . . Thermal 1176 | . 37 1139 Explosive . | . . . Electromagnetic . | . . . Impact . | . . . Slashing . | . . . Piercing . | . . . Highest Corruption . | . . . Average Corruption . | . . . Corruption Purged . | . . . Overload Shots . | . . . Overflow Damage . | . . . Projectiles . | . . . Explosions . | . . . Melee . | . . . Knockbacks . | . . . Impact . | . . . Kinetic . | . . . Secondary . | . . . Self-Inflicted Damage . | . . . Shots . | . . . Rammed . | . . . Targets Rammed . | . . . Kicked . | . . . Crushed . | . . . Highest Temperature 90 | . 90 13 Average Temperature 42 | . 46 10 Received Heat Transfer 327 | . 12 315 Siege Activations . | . . . Robots Corrupted . | . . . Combat Hostiles . | . . . Parts Fried . | . . . Impact Corruptions . | . . . Robots Melted . | . . . Combat Hostiles . | . . . Parts Melted 5 | . . 5 Heat Transferred 3123 | . 87 3036 Parts Sabotaged . | . . . Parts Stolen . | . . . Parts Stripped . | . . . Power Chain Reactions . | . . . Missiles Intercepted . | . . . Alert | -11 -10 -9 ------- Run | Scr Mat Mat Peak Influence 356 | . 40 356 Average Influence 141 | . 12 191 Maximum Alert Level 1 | . . 1 Low Security (%) 67 | 100 100 55 Level 1 32 | . . 44 Level 2 . | . . . Level 3 . | . . . Level 4 . | . . . Level 5 . | . . . High Security . | . . . Max Security . | . . . Squads Dispatched 2 | . 1 1 Investigation 1 | . 1 . Extermination . | . . . Reinforcement 1 | . . 1 Assault . | . . . Garrison . | . . . Intercept . | . . . Construction Impeded . | . . . Haulers Reinforced . | . . . Stealth | -11 -10 -9 --------- Run | Scr Mat Mat Distress Signals 3 | . 1 2 Communications Jammed . | . . . Distress Signals . | . . . Times Spotted 40 | . 6 34 Peak Tracking Total 6 | . 4 6 Tactical Retreats 6 | . . 6 Traps | -11 -10 -9 ------- Run | Scr Mat Mat Traps Triggered . | . . . Indirectly . | . . . Trap Hack Attempts . | . . . Triggered . | . . . Disarmed . | . . . Reprogrammed . | . . . Reused . | . . . Traps Extracted . | . . . Installed . | . . . Triggered . | . . . Machines | -11 -10 -9 ---------- Run | Scr Mat Mat Machines Disabled . | . . . Max in Single Turn . | . . . Machines Sabotaged . | . . . Garrisons Compromised . | . . . Overloaded Fab Kills . | . . . Fab Network Shutdowns . | . . . Hacking | -11 -10 -9 --------- Run | Scr Mat Mat Machines Accessed 5 | . 2 3 Terminals 4 | . 2 2 Fabricators . | . . . Repair Stations . | . . . Recycling Units 1 | . . 1 Scanalyzers . | . . . Garrison Access . | . . . Total Hacks 16 | . 9 7 Successful 11 | . 4 7 Failed 5 | . 5 . Catastrophic . | . . . Database Lockouts . | . . . Manual 10 | . 8 2 Terminals 14 | . 9 5 Fabricators . | . . . Repair Stations . | . . . Recycling Units 2 | . . 2 Scanalyzers . | . . . Garrison Access . | . . . Terminal Hacks 5 | . 1 4 Robot Analysis 1 | . 1 . Branch Access Points 1 | . . 1 Alert Level 1 | . . 1 Unreport Threat 1 | . . 1 Hauler Manifests 1 | . . 1 Fabricator Hacks . | . . . Repair Station Hacks . | . . . Recycling Unit Hacks 2 | . . 2 Report Inventory 1 | . . 1 Retrieve Components 1 | . . 1 Scanalyzer . | . . . Garrison Access Hacks . | . . . Unauthorized Hacks 4 | . 3 1 Terminals 4 | . 3 1 Track 1 | . 1 . Botnet 3 | . 2 1 Fabricators . | . . . Repair Stations . | . . . Recycling Units . | . . . Scanalyzers . | . . . Garrison Access . | . . . Data Cores Recovered . | . . . Used . | . . . Hacking Detections 5 | . 2 3 Full Trace Events 2 | . 1 1 Feedback Events . | . . . Feedback Blocked . | . . . Robot Schematics Acquired . | . . . Robots Built . | . . . Matter . | . . . Time . | . . . Total Robot Build Rating . | . . . Part Schematics Acquired . | . . . Parts Built . | . . . Matter . | . . . Time . | . . . Total Part Build Rating . | . . . Parts Repaired . | . . . Time . | . . . Parts Recycled . | . . . Recycled Matter . | . . . Retrieved Matter . | . . . Retrieved Components 1 | . . 1 Parts Scanalyzed . | . . . Part Schematics Acquired . | . . . Parts Damaged . | . . . Bothacking | -11 -10 -9 ------------ Run | Scr Mat Mat Used RIF Installer . | . . . Robots Hacked . | . . . Non-combat . | . . . Combat . | . . . Robot Hacks Applied . | . . . Relay Couplers Released . | . . . Robots Rewired . | . . . Allies Hacked . | . . . Hacks Repelled . | . . . Allies | -11 -10 -9 -------- Run | Scr Mat Mat Total Allies . | . . . Largest Group . | . . . Highest-Rated Group . | . . . Highest-Rated Ally . | . . . Total Orders . | . . . Ally Attacks . | . . . Total Damage . | . . . Kills . | . . . Allies Corrupted . | . . . Allies Melted . | . . . Intel | -11 -10 -9 ------- Run | Scr Mat Mat Robot Analysis Total 1 | . 1 . Derelict Logs Recovered . | . . . Drone Launches . | . . . Drone Recoveries . | . . . Exploration | -11 -10 -9 ------------- Run | Scr Mat Mat Turns Passed 627 | 63 107 457 Spaces Moved 422 | 66 118 238 Core 1 | 1 . . Treads . | . . . Legs . | . . . Wheels 368 | 65 118 185 Hover . | . . . Flight 53 | . . 53 Fastest Speed 34 | 50 80 34 Average Speed 74 | 79 80 70 Slowest Speed 80 | 80 80 80 Overloaded Moves . | . . . Propulsion Burnouts . | . . . Robots Hopped . | . . . Cave-ins Triggered . | . . . Exploration Rate (%) 17 | 4 25 23 Regions Visited 2 Branch Regions . Pre-discovered Areas . | . . . Known Exits Taken . | . . . Unknown Exits Taken 2 | 1 1 . Scrap Searched . | . . . Spaces Dug . | . . . Terrain Destroyed . | . . . Melee . | . . . Projectile . | . . . AOE . | . . . Actions | -11 -10 -9 --------- Run | Scr Mat Mat Total 599 | 75 123 401 Wait 49 | . . 49 Move 420 | 65 117 238 Hop . | . . . Pick Up 7 | 5 . 2 Fast Attach 9 | 2 2 5 Attach 5 | 3 . 2 Detach . | . . . Swap . | . . . Drop 5 | . 1 4 Fire 85 | . 3 82 Melee . | . . . Ram . | . . . Kick . | . . . Crush . | . . . Escape Stasis . | . . . Rewire . | . . . Trap . | . . . Miscellaneous 19 | . . 19 Route ------- -11/Scrapyard -10/Materials -9/Materials (discovered 5 exits: [*Mat] / Min x2 / Sto x2) History --------- Turn | Location | Event 3 | -11/Scrapyard | Upgraded with Propulsion slot (x1) 3 | -11/Scrapyard | Upgraded with Utility slot (x1) 3 | -11/Scrapyard | Upgraded with Weapon slot (x1) 12 | -11/Scrapyard | Discovered new exit (range 16) 64 | -11/Scrapyard | Entered Materials 160 | -10/Materials | Discovered new exit (range 14) 171 | -10/Materials | Entered another Materials area 173 | -9/Materials | Reached level 2 178 | -9/Materials | Upgraded with Propulsion slot (x1) 185 | -9/Materials | Identified exit to Mines 185 | -9/Materials | Identified exit to Storage 312 | -9/Materials | Build established: Mutant 385 | -9/Materials | Core integrity fell below 50% 445 | -9/Materials | Discovered new exit (range 17) 453 | -9/Materials | Reached level 3 584 | -9/Materials | Core integrity fell below 20% 628 | -9/Materials | Self-destructed Last Messages --------------- 00527_ K-01 Serf collects debris. 00532_ Acquired Flight Unit. 00533_ Dropped Wheel. 00534_ Acquired 10 matter. 00545_ Acquired Flight Unit. 00558_ Dropped Lgt. Ion Engine. 00576_ Acquired Ion Engine. 00577_ C-30 ARC bursts open, deploying its payload. 00577_ S-10 Pest unfolds itself. 00579_ Med. Laser destroyed. 00586_ S-10 Pest destroyed. 00597_ Destroyed Flight Unit. 00601_ S-10 Pest destroyed. 00608_ K-01 Serf collects debris. 00608_ S-10 Pest destroyed. 00611_ K-01 Serf collects debris. 00619_ B-36 Bruiser destroyed. 00620_ K-01 Serf collects debris. 00627_ Used Protomatter to restore core integrity (+141, depleted) 00627_ K-01 Serf collects debris. Map ----- +----------------------------------------------------+ | ?????????????????????????????????????????????????? | | ?????????????????????????????????????????????????? | | ?????????????????????????????????????????????????? | | ?????????????????????????????????????????????????? | | ?????????????????????????????????????????????????? | | ?????????????????????????????????????????????????? | | ????????????????????????????????#####????????????? | | ????????????????????????????????# #????????????? | | ????????????????????????????????# < #????????????? | | ????????????????????????????????# #????????????? | | ????????????????????????????????+ #????????????? | | ????????????????????????????????# #????????????? | | ????????????????????????????????# #????????????? | | ????????????????????????????????# #????????????? | | ????????????????????????????????# =#??##????#???? | | ????????????????????????????????#%=*#?? ?? #???? | | ???????????????????#######??????# #? ?!!! #???? | | ???????????????????# ######## # !!! #???? | | ???????????????????# [# # # !!! #???? | | ???????????????????# # + *+ #???? | | ???????????????????# # " # !%# """ #???? | | ???????????????????# # T # =#? """ ????? | | ????????########???# # " ! # #?? """ ????? | | ????????# ??# #?? # #??? ?????? | | ????????# ####+######+###% ########?????? | | ????????# # !===@ k == * o ###???? | | ????????# /u!%%=%!%=%%!%* | | ????????# # =%!=/ ==mk|%[ ######? | | ????????+ ?# #########/#########+####?????? | | ????????# ???# #?????# %%% #???????????????? | | ?????????? ????# #?????# !""#???????????????? | | ?????????###??????# #?????# %T"#???????????????? | | ??????????????????# #?????# *""#???????????????? | | ??????????????????# #?????# #???????????????? | | ??????????????????# #?????# #???????????????? | | ??????????????????#%#?????####+###???????????????? | | ??????????????????#*#????????# #?????????????????? | | ??????????????????# #??????### ###???????????????? | | ??????????????????# #??????# #???????????????? | | ??????????????????# #??????# #???????????????? | | ??????????????????# #??????+ ???????????????? | | ??????????????????# #??????? ????????????????? | | ??????????????????# #??????? ????????????????? | | ??????????????????# #???????# #????????????????? | | ?????>?????????####+###?????# #????????????????? | | ???????????????# #?????# #????????????????? | | ???????????????# """ #?????# #????????????????? | | ???????????????# """ #?????# #########????????? | | ???????????????# """ #????## ## #????????? | | ??????????????## ###### # #????????? | +----------------------------------------------------+ Best States ------------- Heat Dissipation 55 Energy Generation 10 Energy Capacity 250 Matter Stores 300 Matter Capacity 300 Sight Range 17 Terrain Scan Density 10 ECM Strength 1 Armor Coverage 225 Resistance: KI 5 Resistance: TH 5 Resistance: EX 5 Evasion (%) 61 Offensive Hacking 5 Item Schematics ----------------- None Robot Schematics ------------------ None Fabricated ------------ Nothing Alien Tech Used ----------------- None Achievements -------------- None Challenges ------------ None RPGLIKE | -11 -10 -9 --------- Run | Scr Mat Mat Levels Raised 2 | . . 2 XP Earned 7090 | 3000 100 3990 XP Spent 4350 | 3000 . 1350 Upgrades 17 | 10 . 7 Propulsion Slot 2 | 1 . 1 Utility Slot 1 | 1 . . Weapon Slot 1 | 1 . . Heat Dissipation 5 | . . 5 Mass Support 1 | . . 1 Inventory Capacity 2 | 2 . . Sight Range 1 | 1 . . Hack Attack % 1 | 1 . . KI Resistance % 1 | 1 . . TH Resistance % 1 | 1 . . EX Resistance % 1 | 1 . . Protomatter Created 157 | . . 157 Integrity Restored 420 | . . 420 Core 420 | . . 420 Protomatter Decayed 25 | . . 25 Game ------ Seed ScanAssembledThrower Manual? 0 Play Time 00:08:31 Cumulative 59.4 hours Start 2020.07.28 @ 03:51:07 End 2020.07.29 @ 00:35:15 Sessions 3 Manual Loads 0 Difficulty Rogue Special Mode Winter2019/RPGLIKE Game No. 88 Rogue 88 Adventurer 0 Explorer 0 Win Type - Total 0 Types 0/0/0/0/0/0/0 Lore% 34 Gallery% 43 Achievement% 35 Wizard Run 0 Options --------- ASCII 0 Keyboard 0 Movement Mouse Keybinds 0 Fullscreen 2 Font 18/X11 Map View 76x50 Tactical HUD 1 Map Filters NONE Filters NONE Steam 1 RUN: 903e9de9-cf64-4558-9b99-16858c52d21f